fUSD/lending_fUSD_20240223
["ID","MTS","AMOUNT","RATE_DAILY","PERIOD"]
[314956914,1708698647889,-500.0,0.00027397,2]
[314956915,1708698647899,-575.70425598,0.00027397,2]
[314956916,1708698647908,-500.0,0.00027397,2]
[314956917,1708698647918,-500.0,0.00027397,2]
[314956918,1708698647929,-500.0,0.00027397,2]
[314956919,1708698647939,-500.0,0.00027397,2]
[314956920,1708698647948,-500.0,0.00027397,2]
[314956921,1708698647958,-512.11093933,0.00027397,2]
[314956922,1708698647967,-500.0,0.00027397,2]
[314956923,1708698647977,-500.0,0.00027397,2]
[314956924,1708698647987,-500.0,0.00027397,2]
[314956925,1708698647997,-203.75692375,0.00027397,2]
[314956926,1708698648007,-520.59380299,0.00027397,2]
[314956927,1708698648016,-498.825867,0.00027397,2]
[314956928,1708698648026,-511.81209033,0.00027397,2]
[314956929,1708698648036,-505.62096692,0.00027397,2]
[314956930,1708698648045,-500.0,0.00027397,2]
[314956931,1708698648054,-504.05292877,0.00027397,2]
[314956932,1708698648064,-505.35802061,0.00027397,2]
[314956933,1708698648074,-500.0,0.00027397,2]
[314956934,1708698648083,-500.0,0.00027397,2]
[314956935,1708698648092,-613.57546334,0.00027397,2]
[314956936,1708698648102,-500.0,0.00027397,2]
[314956937,1708698648112,-500.0,0.00027397,2]
[314956938,1708698648121,-500.0,0.00027397,2]
[314956939,1708698648133,-500.0,0.00027397,2]
[314956940,1708698648143,-516.00780409,0.00027397,2]
[314956941,1708698648151,-525.1862811,0.00027397,2]
[314956942,1708698648161,-500.0,0.00027397,2]
[314956943,1708698648170,-500.0,0.00027397,2]
[314956944,1708698648180,-500.0,0.00027397,2]
[314956945,1708698648190,-500.0,0.00027397,2]
[314956946,1708698648200,-509.13449787,0.00027397,2]
[314956947,1708698648209,-500.0,0.00027397,2]
[314956948,1708698648220,-572.93980241,0.00027397,2]
[314956949,1708698648230,-500.0,0.00027397,2]
[314956950,1708698648239,-500.0,0.00027397,2]
[314956951,1708698648248,-507.48922273,0.00027397,2]
[314956952,1708698648257,-512.48384661,0.00027397,2]
[314956953,1708698648266,-500.0,0.00027397,2]
[314956954,1708698648276,-500.0,0.00027397,2]
[314956955,1708698648285,-500.0,0.00027397,2]
[314956956,1708698648294,-500.0,0.00027397,2]
[314956957,1708698648303,-231.53699685,0.00027397,2]
[314956958,1708698648312,-500.0,0.00027397,2]
[314956959,1708698648321,-500.0,0.00027397,2]
[314956960,1708698648331,-615.67432768,0.00027397,2]
[314956961,1708698648339,-500.0,0.00027397,2]
[314956962,1708698648348,-520.72507164,0.00027397,2]
[314956963,1708698648361,-500.0,0.00027397,2]
[314956964,1708698648371,-525.13845042,0.00027397,2]
[314956965,1708698648381,-500.0,0.00027397,2]
[314956966,1708698648391,-430.10159825,0.00027397,2]
[314956967,1708698648401,-181.88787882,0.00027397,2]
[314956968,1708698648410,-500.0,0.00027397,2]
[314956969,1708698648420,-547.82,0.00027397,2]
[314956970,1708698648430,-1000.0,0.00027397,7]
[314956971,1708698648439,-500.0,0.00027397,2]
[314956972,1708698648449,-500.0,0.00027397,2]
[314956973,1708698648458,-517.12996662,0.00027397,2]
[314956974,1708698648467,-500.0,0.00027397,2]
[314956975,1708698648477,-500.0,0.00027397,2]
[314956976,1708698648487,-500.0,0.00027397,2]
[314956977,1708698648496,-500.0,0.00027397,2]
[314956978,1708698648505,-508.53,0.00027397,2]
[314956979,1708698648515,-500.0,0.00027397,2]
[314956980,1708698648526,-500.0,0.00027397,2]
[314956981,1708698648535,-500.0,0.00027397,2]
[314956982,1708698648544,-500.0,0.00027397,2]
[314956983,1708698648554,-500.0,0.00027397,2]
[314956984,1708698648563,-500.0,0.00027397,2]
[314956985,1708698648577,-500.0,0.00027397,2]
[314956986,1708698648587,-500.0,0.00027397,2]
[314956987,1708698648596,-666.48,0.00027397,2]
[314956988,1708698648606,-500.0,0.00027397,2]
[314956989,1708698648616,-645.39268769,0.00027397,2]
[314956990,1708698648626,-500.0,0.00027397,2]
[314956991,1708698648637,-837.78,0.00027397,2]
[314956992,1708698648646,-500.0,0.00027397,2]
[314956993,1708698648656,-500.0,0.00027397,2]
[314956994,1708698648665,-500.0,0.00027397,2]
[314956995,1708698648676,-248.29247555,0.00027397,2]
[314956996,1708698648685,-500.0,0.00027397,2]
[314956997,1708698648695,-513.21,0.00027397,2]
[314956998,1708698648704,-500.0,0.00027397,2]
[314956999,1708698648715,-630.37,0.00027397,2]
[314957000,1708698648724,-500.0,0.00027397,2]
[314957001,1708698648734,-500.0,0.00027397,2]
[314957002,1708698648743,-500.0,0.00027397,2]
[314957003,1708698648753,-500.0,0.00027397,2]
[314957004,1708698648763,-500.0,0.00027397,2]
[314957005,1708698648772,-500.0,0.00027397,2]
[314957006,1708698648782,-500.0,0.00027397,2]
[314957007,1708698648792,-500.0,0.00027397,2]
[314957008,1708698648802,-543.19801394,0.00027397,2]
[314957009,1708698648812,-500.0,0.00027397,2]
[314957010,1708698648821,-500.0,0.00027397,2]
[314957011,1708698648831,-500.0,0.00027397,2]
[314957012,1708698648840,-500.0,0.00027397,2]
[314957013,1708698648850,-500.0,0.00027397,2]
[314957014,1708698648860,-500.0,0.00027397,2]
[314957015,1708698648870,-500.0,0.00027397,2]
[314957016,1708698648882,-500.0,0.00027397,2]
[314957017,1708698648891,-906.09,0.00027397,2]
[314957018,1708698648901,-500.0,0.00027397,2]
[314957019,1708698648911,-500.0,0.00027397,2]
[314957020,1708698648921,-500.0,0.00027397,2]
[314957021,1708698648930,-500.0,0.00027397,2]
[314957022,1708698648939,-500.0,0.00027397,2]
[314957023,1708698648949,-541.61,0.00027397,2]
[314957024,1708698648958,-190.59835944,0.00027397,2]
[314957025,1708698648968,-500.0,0.00027397,2]
[314957026,1708698648978,-500.0,0.00027397,2]
[314957027,1708698648988,-500.0,0.00027397,2]
[314957028,1708698648998,-500.0,0.00027397,2]
[314957029,1708698649007,-518.07298005,0.00027397,2]
[314957030,1708698649017,-500.0,0.00027397,2]
[314957031,1708698649027,-500.0,0.00027397,2]
[314957032,1708698649036,-932.12,0.00027397,2]
[314957033,1708698649046,-500.0,0.00027397,2]
[314957034,1708698649055,-500.0,0.00027397,2]
[314957035,1708698649064,-500.0,0.00027397,2]
[314957036,1708698649074,-1179.95,0.00027397,2]
[314957037,1708698649083,-500.0,0.00027397,2]
[314957038,1708698649093,-500.0,0.00027397,2]
[314957039,1708698649103,-500.0,0.00027397,2]
[314957040,1708698649112,-500.0,0.00027397,2]
[314957041,1708698649122,-500.0,0.00027397,2]
[314957042,1708698649132,-155.0,0.00027397,2]
[314957043,1708698649142,-500.0,0.00027397,2]
[314957044,1708698649151,-500.0,0.00027397,2]
[314957045,1708698649162,-500.0,0.00027397,2]
[314957046,1708698649172,-500.0,0.00027397,2]
[314957047,1708698649182,-932.94,0.00027397,2]
[314957048,1708698649193,-500.0,0.00027397,2]
[314957049,1708698649203,-500.0,0.00027397,2]
[314957050,1708698649212,-500.0,0.00027397,2]
[314957051,1708698649223,-627.87,0.00027397,2]
[314957052,1708698649233,-500.0,0.00027397,2]
[314957053,1708698649242,-500.0,0.00027397,2]
[314957068,1708698649489,-500.0,0.00027397,2]
[314957070,1708698649499,-500.0,0.00027397,2]
[314957072,1708698649509,-500.0,0.00027397,2]
[314957073,1708698649519,-500.0,0.00027397,2]
[314957075,1708698649528,-500.0,0.00027397,2]
[314957076,1708698649538,-500.0,0.00027397,2]
[314957077,1708698649547,-500.0,0.00027397,2]
[314957078,1708698649556,-500.0,0.00027397,2]
[314957079,1708698649567,-500.0,0.00027397,2]
[314957080,1708698649577,-1189.65,0.00027397,2]
[314957081,1708698649587,-500.0,0.00027397,2]
[314957082,1708698649596,-500.0,0.00027397,2]
[314957083,1708698649607,-500.0,0.00027397,2]
[314957084,1708698649617,-500.0,0.00027397,2]
[314957085,1708698649626,-500.0,0.00027397,2]
[314957086,1708698649638,-500.0,0.00027397,2]
[314957087,1708698649648,-530.88,0.00027397,2]
[314957088,1708698649658,-500.0,0.00027397,2]
[314957089,1708698649667,-500.0,0.00027397,2]
[314957090,1708698649676,-500.0,0.00027397,2]
[314957091,1708698649689,-1213.31,0.00027397,2]
[314957092,1708698649699,-500.0,0.00027397,2]
[314957093,1708698649708,-500.0,0.00027397,2]
[314957094,1708698649717,-500.0,0.00027397,2]
[314957095,1708698649727,-500.0,0.00027397,2]
[314957096,1708698649736,-500.0,0.00027397,2]
[314957097,1708698649746,-500.0,0.00027397,2]
[314957098,1708698649755,-343.50945876,0.00027397,2]
[314957099,1708698649765,-3445.32,0.00027397,2]
[314957100,1708698649774,-500.0,0.00027397,2]
[314957101,1708698649784,-500.0,0.00027397,2]
[314957102,1708698649794,-500.0,0.00027397,2]
[314957103,1708698649803,-500.0,0.00027397,2]
[314957104,1708698649812,-155.94612303,0.00027397,2]
[314957105,1708698649822,-500.0,0.00027397,2]
[314957106,1708698649831,-319.22,0.00027397,2]
[314957107,1708698649840,-500.0,0.00027397,2]
[314957108,1708698649850,-500.0,0.00027397,2]
[314957109,1708698649860,-500.0,0.00027397,2]
[314957110,1708698649869,-692.82,0.00027397,2]
[314957111,1708698649878,-500.0,0.00027397,2]
[314957112,1708698649891,-1192.34,0.00027397,2]
[314957113,1708698649901,-500.0,0.00027397,2]
[314957114,1708698649910,-500.0,0.00027397,2]
[314957115,1708698649920,-1262.57,0.00027397,2]
[314957116,1708698649929,-500.0,0.00027397,2]
[314957117,1708698649937,-500.0,0.00027397,2]
[314957118,1708698649947,-497.13867389,0.00027397,2]
[314957119,1708698649956,-500.0,0.00027397,2]
[314957120,1708698649967,-500.0,0.00027397,2]
[314957121,1708698649976,-500.0,0.00027397,2]
[314957122,1708698649985,-500.0,0.00027397,2]
[314957123,1708698649994,-500.0,0.00027397,2]
[314957124,1708698650004,-563.32251371,0.00027397,2]
[314957125,1708698650014,-500.0,0.00027397,2]
[314957126,1708698650024,-500.0,0.00027397,2]
[314957127,1708698650033,-132.56577446,0.00027397,2]
[314957128,1708698650061,-367.43422554,0.00027397,2]
[314957129,1708698650070,-389.9641604,0.00027397,2]
[314957130,1708698650358,-110.0358396,0.00027397,2]
[314957131,1708698650367,-4214.96,0.00027397,2]
[314957132,1708698650377,-500.0,0.00027397,2]
[314957133,1708698650388,-500.0,0.00027397,2]
[314957134,1708698650398,-500.0,0.00027397,2]
[314957135,1708698650407,-500.0,0.00027397,2]
[314957136,1708698650417,-1481.74,0.00027397,2]
[314957137,1708698650426,-500.0,0.00027397,2]
[314957138,1708698650436,-500.0,0.00027397,2]
[314957139,1708698650445,-596.45,0.00027397,2]
[314957140,1708698650455,-2683.67,0.00027397,2]
[314957141,1708698650465,-142.01790246,0.00027397,2]
[314957142,1708698650478,-84.20356236,0.00027397,2]
[314957143,1708698650488,-500.0,0.00027397,2]
[314957144,1708698650498,-500.0,0.00027397,2]
[314957145,1708698650508,-500.0,0.00027397,2]
[314957146,1708698650517,-500.0,0.00027397,2]
[314957147,1708698650527,-504.85610827,0.00027397,2]
[314957148,1708698734063,-476.82,0.0002449,2]
[314957149,1708698734094,-1130.6176,0.00025499,2]
[314957150,1708698753878,201.0,0.00024589,2]
[314957151,1708698870596,-250.0,0.00026199,2]
[314957152,1708698870621,-150.0,0.00026219,2]
[314957153,1708698870643,-250.0,0.00026247,2]
[314957154,1708698870668,-704.34,0.00026316,2]
[314957155,1708698870691,-1807.68,0.00026324,2]
[314957156,1708698870711,-500.0,0.00026348,2]
[314957157,1708698870733,-500.0,0.00026348,2]
[314957158,1708698870754,-150.0,0.00026399,2]
[314957159,1708698870776,-2987.98,0.00026432,2]
[314957160,1708698934050,208.0,0.00024589,2]
[314957161,1708699210838,452.97,0.00023815,2]
[314957162,1708699233782,254.87,0.00025708,2]
[314957163,1708699242403,158.40450931,0.00025624,2]
[314957164,1708699276007,250.0,0.00025698,2]
[314957165,1708699288264,250.0,0.00025678,2]
[314957166,1708699301693,352.17,0.00025694,2]
[314957167,1708699418960,151.42,0.00025691,2]
[314957168,1708699467579,1101.77,0.00025663,2]
[314957169,1708699513772,640.26,0.00025592,2]
[314957170,1708699536880,200.0,0.00025693,2]
[314957171,1708699549374,586.82,0.00025598,2]
[314957172,1708699553376,1008.53065537,0.00025709,2]
[314957173,1708699570018,200.0,0.00025594,2]
[314957174,1708699622371,768.90963532,0.0002552,2]
[314957175,1708699690881,455.57,0.00023482,2]
[314957190,1708699832356,-279.0,0.00024999,2]
[314957191,1708699832366,-485.73381817,0.00024999,2]
[314957192,1708699832376,-150.0,0.00025,2]
[314957193,1708699832385,-41.50370851,0.00025,3]
[314957194,1708699834320,-201.0,0.00024808,2]
[314957195,1708699834329,-708.49629149,0.00025,3]
[314957196,1708699834339,-250.0,0.00025374,2]
[314957197,1708699834348,-410.21,0.00025438,2]
[314957198,1708699834360,-150.0,0.00025493,2]
[314957199,1708699834370,-1006.23617193,0.00025494,2]
[314957200,1708699834583,-449.18837953,0.00025494,2]
[314957201,1708699834597,-1309.40393483,0.00025494,2]
[314957202,1708699834615,-5695.5,0.00025494,2]
[314957203,1708699834641,-500.77266238,0.00025494,2]
[314957204,1708699834654,-6527.70697676,0.00025494,2]
[314957205,1708699834664,-23900.0,0.00025495,2]
[314957206,1708699834674,-690.31036468,0.0002552,2]
[314957207,1708699834684,-2000.0,0.00025713,2]
[314957208,1708699834694,-1212.20411955,0.00025722,2]
[314957209,1708699834703,-499.99,0.00025746,2]
[314957210,1708699834713,-455.57,0.00025746,2]
[314957211,1708699834722,-153.82,0.0002579,2]
[314957212,1708699834731,-169.48,0.00025836,2]
[314957213,1708699834741,-151.42,0.00025889,2]
[314957214,1708699834750,-359.74,0.00025915,2]
[314957215,1708699834759,-151.42,0.00026086,2]
[314957216,1708699834769,-1846.03,0.00026192,2]
[314957217,1708699834778,-153.41,0.0002622,2]
[314957218,1708699834788,-1776.73,0.00026269,2]
[314957219,1708699834797,-1832.79,0.00026273,2]
[314957221,1708699834806,-1798.72,0.00026278,2]
[314957223,1708699834815,-151.42,0.00026284,2]
[314957225,1708699834824,-153.41,0.00026395,2]
[314957227,1708699834834,-1795.43,0.00026433,2]
[314957229,1708699834843,-151.42,0.00026482,2]
[314957231,1708699834854,-153.41,0.00026569,2]
[314957232,1708699834864,-250.0,0.0002667,2]
[314957235,1708699834873,-151.42,0.00026679,2]
[314957237,1708699834882,-153.41,0.00026744,2]
[314957239,1708699834891,-383.0,0.00026771,2]
[314957241,1708699834901,-164.11438123,0.00026777,2]
[314957243,1708699834910,-164.1143812,0.00026789,2]
[314957245,1708699834919,-283.699999,0.000268,2]
[314957246,1708699834928,-164.83777802,0.000268,2]
[314957249,1708699834937,-5372.65921039,0.000268,2]
[314957251,1708699834946,-164.1143812,0.000268,2]
[314957253,1708699834959,-536.80381159,0.000268,2]
[314957255,1708699834968,-23439.4401038,0.00026819,2]
[314957257,1708699834980,-5092.03599999,0.00026819,2]
[314957276,1708699835153,-7561.48459689,0.00026819,2]
[314957278,1708699835163,-151.42,0.00026877,2]
[314957280,1708699835172,-203.82134233,0.00026889,2]
[314957282,1708699835182,-243.29744567,0.00026898,2]
[314957284,1708699835191,-92875.97661511,0.00026899,2]
[314957286,1708699835203,-34269.49999958,0.00026899,2]
[314957311,1708699838250,-5202.05999997,0.00026899,2]
[314957314,1708699838426,-3519.63588636,0.00026899,2]
[314957315,1708699838438,-4932.86,0.00026899,2]
[314957316,1708699838449,-1933.5,0.00026899,2]
[314957317,1708699838461,-5369.58898907,0.00026899,2]
[314957318,1708699838513,-6966.7017866,0.00026899,2]
[314957351,1708699838911,-791.12299132,0.00026899,2]
[314957353,1708699838923,-3665.18362223,0.00026899,2]
[314957355,1708699838938,-346.36526254,0.00026899,2]
[314957358,1708699838961,-171577.72251514,0.00026899,2]
[314957360,1708699838972,-241086.08642913,0.00026899,2]
[314957386,1708699841621,-560.76802394,0.00026899,2]
[314957387,1708699841633,-3871.13373884,0.00026899,2]
[314957437,1708699843422,-3157.02498401,0.00026899,2]
[314957438,1708699843433,-4103.3305331,0.00026899,2]
[314957439,1708699843492,-273.55196259,0.00026899,2]
[314957440,1708699843503,-266.265896,0.00026899,2]
[314957441,1708699843515,-1568.50412502,0.00026899,2]
[314957442,1708699843624,-3293.51699903,0.00026899,2]
[314957443,1708699843636,-2978.48416798,0.00026899,2]
[314957444,1708699843649,-1401.67775003,0.00026899,2]
[314957445,1708699843660,-6039.20889014,0.00026899,2]
[314957446,1708699843671,-2785.42659765,0.00026899,2]
[314957447,1708699843683,-516.68256542,0.00026899,2]
[314957448,1708699843695,-4883.32635051,0.00026899,2]
[314957460,1708699846323,-634.10867862,0.00026898,2]
[314957462,1708699846332,-689.74745304,0.00026899,2]
[314957464,1708699846344,-5100.5,0.00026899,2]
[314957474,1708699846447,-691.55330198,0.00026899,2]
[314957475,1708699846581,-15285.27,0.00026899,2]
[314957477,1708700032387,1812442.69740292,0.00023,2]
[314957479,1708700065038,681.79323145,0.00025,7]
[314957480,1708700141383,488.67,0.00023408,2]
[314957481,1708700277732,500.0,0.00017397,2]
[314957482,1708700524428,202.0,0.00022808,2]
[314957483,1708700656874,1620000.0,0.000235,2]
[314957484,1708700680457,480355.26929696,0.000235,2]
[314957485,1708700756832,495.69,0.00023257,2]
[314957486,1708700796133,-224.27431096,0.00023999,2]
[314957487,1708700802892,20000.0,0.00022,2]
[314957488,1708700831104,155.0,0.00023257,2]
[314957489,1708700850967,160.81264372,0.00023257,2]
[314957490,1708700873688,5000.0,0.00023,2]
[314957491,1708700889180,150.0,0.00022977,2]
[314957492,1708700902683,10876.278162,0.00025,10]
[314957502,1708701034186,-377.685,0.00023779,2]
[314957504,1708701037447,-671.59797181,0.00023779,2]
[314957507,1708701037457,-465.965809,0.0002378,2]
[314957510,1708701037466,-164.15835419,0.000239,2]
[314957512,1708701037477,-313.5118107,0.00024,2]
[314957514,1708701037487,-164.15835419,0.00024578,2]
[314957515,1708701037497,-926.07296746,0.00024578,2]
[314957516,1708701037506,-202.0,0.00024669,2]
[314957517,1708701037516,-3522.94616979,0.00024896,2]
[314957518,1708701037545,-734.78714954,0.00024896,2]
[314957519,1708701037557,-1909.42862918,0.00024896,2]
[314957520,1708701037612,-465.94415981,0.00024896,2]
[314957521,1708701037624,-5418.24,0.00024896,2]
[314957522,1708701037680,-5259.58201768,0.00024896,2]
[314957523,1708701037691,-1704.77468899,0.00024896,2]
[314957524,1708701037745,-4884.29718501,0.00024896,2]
[314957525,1708701037754,-825.98,0.00024927,2]
[314957526,1708701037763,-200.0,0.00024987,2]
[314957527,1708701037772,-500.0,0.0002499,2]
[314957528,1708701037781,-200.0,0.00024999,2]
[314957529,1708701037790,-150.0,0.00025,2]
[314957530,1708701037799,-194.94719425,0.00025,2]
[314957531,1708701037808,-15488.80812543,0.00025032,2]
[314957532,1708701037817,-300.0,0.00025033,2]
[314957533,1708701037826,-150.0,0.00025033,2]
[314957534,1708701037838,-424.03,0.00025033,2]
[314957535,1708701037847,-1963.65,0.00025033,2]
[314957536,1708701037858,-2705.0,0.00025035,2]
[314957537,1708701037867,-4506.7663877,0.0002509,2]
[314957538,1708701037877,-999.99,0.0002509,2]
[314957539,1708701037886,-308.62,0.00025151,2]
[314957540,1708701037895,-500.0,0.00025163,2]
[314957541,1708701037904,-155.53,0.00025166,2]
[314957542,1708701037914,-635.917789,0.00025178,2]
[314957543,1708701037923,-499.99,0.0002518,2]
[314957544,1708701037932,-1216.01,0.00025208,2]
[314957545,1708701037941,-2000.0,0.00025229,2]
[314957546,1708701037951,-512.21,0.0002523,2]
[314957547,1708701037960,-164.15835419,0.00025256,2]
[314957548,1708701037969,-165.7,0.00025279,2]
[314957549,1708701037978,-155.53,0.00025314,2]
[314957550,1708701037987,-207.97,0.00025367,2]
[314957551,1708701037996,-487.79,0.00025373,2]
[314957552,1708701038005,-152.95,0.00025402,2]
[314957553,1708701038014,-155.53,0.00025462,2]
[314957554,1708701038024,-241.66,0.00025496,2]
[314957555,1708701038034,-495.69,0.00025521,2]
[314957556,1708701038043,-152.95,0.00025549,2]
[314957557,1708701038053,-4950.0,0.000256,2]
[314957558,1708701038064,-155.53,0.0002561,2]
[314957559,1708701038073,-152.95,0.00025696,2]
[314957560,1708701038085,-155.53,0.00025758,2]
[314957561,1708701038096,-152.95,0.00025843,2]
[314957562,1708701038106,-2041.956,0.00025843,2]
[314957563,1708701038115,-155.53,0.00025906,2]
[314957564,1708701038125,-164.15835419,0.00025933,2]
[314957565,1708701038135,-1294.39429395,0.00025959,2]
[314957566,1708701038145,-152.95,0.00025991,2]
[314957567,1708701038154,-152.53,0.00026024,2]
[314957568,1708701038164,-164.19,0.00026052,2]
[314957569,1708701038174,-155.53,0.00026054,2]
[314957570,1708701038183,-250.0,0.00026094,2]
[314957571,1708701038193,-152.95,0.00026138,2]
[314957572,1708701038202,-1294.39429395,0.00026147,2]
[314957573,1708701038211,-155.53,0.00026202,2]
[314957574,1708701038221,-177.74,0.00026239,2]
[314957575,1708701038230,-177.74,0.00026239,2]
[314957576,1708701038240,-7394.0,0.0002626,2]
[314957577,1708701038249,-152.95,0.00026285,2]
[314957578,1708701038259,-150.0,0.000263,2]
[314957579,1708701038268,-372.97784308,0.000263,2]
[314957580,1708701038279,-155.53,0.0002635,2]
[314957581,1708701038289,-18014.0,0.000264,2]
[314957582,1708701038299,-2816.0,0.000264,2]
[314957583,1708701038310,-150.0,0.000264,2]
[314957584,1708701038320,-152.95,0.00026432,2]
[314957585,1708701038331,-372.97784306,0.00026497,2]
[314957586,1708701038340,-155.53,0.00026498,2]
[314957587,1708701038350,-160.8811,0.00026498,2]
[314957588,1708701038359,-1294.39429395,0.00026511,2]
[314957589,1708701038369,-1244.88501797,0.00026535,2]
[314957590,1708701038378,-1793.83,0.0002655,2]
[314957591,1708701038387,-825.98,0.00026571,2]
[314957592,1708701038396,-1244.88501797,0.00026578,2]
[314957593,1708701038406,-152.95,0.00026579,2]
[314957594,1708701038415,-1294.39429395,0.00026586,2]
[314957595,1708701038424,-500.0,0.00026593,2]
[314957596,1708701038433,-6207.6916,0.00026593,2]
[314957597,1708701038443,-26452.28097841,0.00026596,2]
[314957598,1708701038452,-1212.20411955,0.00026596,2]
[314957599,1708701038461,-7081.7983,0.00026596,2]
[314957600,1708701038471,-10704.8903,0.00026596,2]
[314957601,1708701038480,-14785.32055461,0.00026598,2]
[314957602,1708701038490,-2500.0,0.00026599,2]
[314957603,1708701038499,-164.15835419,0.00026611,2]
[314957604,1708701038508,-26173.97294743,0.0002664,2]
[314957605,1708701038517,-155.53,0.00026646,2]
[314957606,1708701038525,-185.08070316,0.00026685,2]
[314957607,1708701038535,-213.08384221,0.00026694,2]
[314957608,1708701038545,-500.0,0.00026694,2]
[314957609,1708701038555,-500.0,0.00026694,2]
[314957610,1708701038565,-500.0,0.00026694,2]
[314957611,1708701038575,-402.27732784,0.00026694,2]
[314957612,1708701038590,-570.28737063,0.00026694,2]
[314957613,1708701038599,-500.0,0.00026694,2]
[314957614,1708701038609,-624.73693003,0.00026694,2]
[314957615,1708701038618,-500.0,0.00026694,2]
[314957616,1708701038628,-1029.23286624,0.00026694,3]
[314957617,1708701038638,-372.97784306,0.00026694,2]
[314957618,1708701038647,-733.2582684,0.00026694,2]
[314957619,1708701038657,-2529.717,0.00026695,2]
[314957620,1708701038667,-44330.24373572,0.00026695,2]
[314957626,1708701040078,-307.46014093,0.00026596,2]
[314957627,1708701040107,-2234.16174096,0.00026596,2]
[314957628,1708701040117,-869.56050904,0.00026695,2]
[314957629,1708701040130,-305.0,0.00026695,2]
[314957630,1708701040637,-275.48777796,0.00026695,2]
[314957631,1708701040649,-724.5271639,0.00026695,2]
[314957632,1708701040661,-304.1611753,0.00026695,2]
[314957633,1708701040771,-1754.78592982,0.00026695,2]
[314957634,1708701040783,-1015.73451253,0.00026695,2]
[314957636,1708701040795,-59160.6930523,0.00026695,2]
[314957638,1708701040808,-954793.41821859,0.00026695,2]
[314957640,1708701040817,-3069.4562,0.00026696,2]
[314957642,1708701040826,-10294.908,0.00026696,2]
[314957643,1708701040839,-9136.42687134,0.00026696,2]
[314957653,1708701041150,-2475.62091322,0.00026696,2]
[314957654,1708701041166,-4645.40589753,0.00026696,2]
[314957656,1708701041177,-700.46205869,0.00026696,2]
[314957658,1708701041188,-1727.48633162,0.00026696,2]
[314957662,1708701041221,-539.14721228,0.00026696,2]
[314957664,1708701041233,-875.71616645,0.00026696,2]
[314957667,1708701041244,-5079.1,0.00026696,2]
[314957669,1708701041255,-1557.50874887,0.00026696,2]
[314957671,1708701041265,-3092.16814377,0.00026696,2]
[314957673,1708701041276,-5000.0,0.00026699,2]
[314957675,1708701041290,-164.19,0.00026703,2]
[314957677,1708701041300,-152.95,0.00026726,2]
[314957679,1708701041309,-152.0,0.00026771,2]
[314957681,1708701041319,-11613.31916683,0.00026793,2]
[314957683,1708701041329,-155.0,0.00026793,2]
[314957685,1708701041343,-155.53,0.00026794,2]
[314957687,1708701041353,-414.88225591,0.00026794,10]
[314957689,1708701041367,-997.3862,0.00026794,2]
[314957691,1708701041376,-9637.30329917,0.00026798,2]
[314957693,1708701041386,-52181.61913879,0.00026798,2]
[314957695,1708701041396,-639.0421,0.00026799,2]
[314957697,1708701041405,-118641.7245,0.00026799,2]
[314957700,1708701041415,-500.0,0.00026799,2]
[314957701,1708701041425,-13200.2806,0.00026799,2]
[314957703,1708701041434,-733.2582684,0.00026845,2]
[314957706,1708701041444,-135574.5097,0.000269,2]
[314957708,1708701041454,-153.41,0.00026919,2]
[314957710,1708701041463,-155.53,0.00026942,2]
[314957712,1708701041473,-150.0,0.00026948,2]